{"text_format":"1","workbook":"xlsx","n_sheets":6,"sheets":["Handleiding","Algemene informatie","Vragenlijst","Verwerkingsregister","Lijsten","Antwoorden keuzelijsten"],"not_rendered":{"charts":0,"images":5,"macros":1,"external_links":0,"defined_names":51,"comments":0,"pivot_tables":0},"unopened":[],"bounds":{"document_bytes":16777216,"sheet_cells":100000,"rows_first":2000,"rows_last":500,"rows_between":2000,"halvings":0,"cell_chars":16384,"cell_head_chars":4096},"cells_cut":0,"cells_raw":0,"read":"whole","date_system":"1900"}

{"sheet":"Handleiding","index":0,"n_rows":0,"n_cols":0,"rows_kept":0,"cut":false,"hidden":false,"merged":[]}

{"sheet":"Algemene informatie","index":1,"n_rows":18,"n_cols":3,"rows_kept":18,"cut":false,"hidden":false,"merged":[[6,0,6,1],[0,0,0,1],[15,0,15,1]]}
["Scouts en Gidsen Vlaanderen vzw"]
["Adres","Wilrijkstraat 45, 2140 Antwerpen"]
["Telefoon","03/231.16.20"]
["Mail","privacy@scoutsengidsenvlaanderen.be"]
["Extra informatie","Voor vragen, problemen of opmerkingen kan je steeds terecht op https://scoutsengidsenvlaanderen.be/GDPR of kan je mailen naar bovenstaand mailadres."]
[]
["Informatie over de groep"]
["Groepsnummer","W1404G"]
["Groepsnaam","Zeescouts De Schorre"]
["Gemeente","Oostende"]
["Postcode",8400]
["Eigen website?",null,1]
["Website URL","https://zeescoutsdeschorre.be/"]
["Hostingbedrijf","Mediaraven","Dit kan je navragen bij de webmaster van je groep"]
[]
["Laatste bewerking"]
["Bewerkt door","Katlijn Forceville"]
["Bewerkt op","2020-01-10"]

{"sheet":"Vragenlijst","index":2,"n_rows":186,"n_cols":9,"rows_kept":186,"cut":false,"hidden":false,"merged":[[181,0,182,3],[12,0,12,1],[14,2,18,2],[14,1,18,1],[31,0,43,0],[32,1,38,1],[32,2,38,2],[39,2,43,2],[39,1,43,1],[19,2,24,2],[19,1,24,1],[53,1,58,1],[53,2,58,2],[46,0,65,0],[47,2,52,2],[47,1,52,1],[8,2,11,2],[8,0,11,1],[0,0,0,3],[1,0,1,3],[2,0,7,1],[2,2,7,2],[59,2,63,2],[59,1,63,1],[44,0,44,3],[45,0,45,3],[25,1,29,1],[25,2,29,2],[13,0,29,0],[30,0,30,1],[71,2,76,2],[71,1,76,1],[77,2,81,2],[77,1,81,1],[66,0,82,0],[67,2,70,2],[67,1,70,1],[83,0,83,3],[85,2,90,2],[91,2,96,2],[97,2,101,2],[85,1,90,1],[91,1,96,1],[97,1,101,1],[84,0,102,0],[103,0,103,3],[105,2,110,2],[105,1,110,1],[115,1,120,1],[115,2,120,2],[121,2,125,2],[121,1,125,1],[111,2,114,2],[111,1,114,1],[104,0,126,0],[127,0,127,1],[129,1,132,1],[129,2,132,2],[133,1,138,1],[133,2,138,2],[139,1,143,1],[139,2,143,2],[128,0,144,0],[145,0,145,3],[147,2,152,2],[147,1,152,1],[146,0,152,0],[153,2,159,2],[153,0,159,1],[160,0,160,1],[161,0,161,3],[163,1,169,1],[162,0,180,0],[170,1,175,1],[176,1,180,1],[170,2,175,2],[176,2,180,2],[163,2,169,2]]}
["Vragenlijst"]
["Deel 1: Ledenadministratie"]
["Vraag 1",null,"Hoe kunnen nieuwe leden zich aansluiten?",null,true,{"$f":"Lijsten!F4","v":"Groepsadministratie"},{"$f":"IF(E3=TRUE,F3&\", \",\"\")","v":"Groepsadministratie, "},{"$f":"G3&G4&G5&G6&G7&G8","v":"Groepsadministratie, Mailprogramma, "},{"$f":"IF(LEN(H3)>0,LEFT(H3,LEN(H3)-2),\"\")","v":"Groepsadministratie, Mailprogramma"}]
[null,null,null,null,false,{"$f":"Lijsten!F5","v":"Website - https://zeescoutsdeschorre.be/"},{"$f":"IF(E4=TRUE,F4&\", \",\"\")","v":""}]
[null,null,null,null,true,{"$f":"Lijsten!F6","v":"Mailprogramma"},"Mailprogramma, "]
[null,null,null,null,false,{"$f":"Lijsten!F7","v":"Papier"},""]
[null,null,null,null,false,{"$f":"Lijsten!F8","v":"Telefoon"},""]
[null,null,null,null,{"$f":"IF(LEN(D8)>0,TRUE,FALSE)","v":false},{"$f":"IF(LEN(D8)>0,D8,\"\")","v":""},""]
["Vraag 2",null,"Hoe worden de individuele steekkaarten ingevuld?",null,true,{"$f":"Lijsten!F4","v":"Groepsadministratie"},"Groepsadministratie, ",{"$f":"G9&G10&G11&G12","v":"Groepsadministratie, "},{"$f":"IF(LEN(H9)>0,LEFT(H9,LEN(H9)-2),\"\")","v":"Groepsadministratie"}]
[null,null,null,null,false,{"$f":"Lijsten!F6","v":"Mailprogramma"},""]
[null,null,null,null,false,{"$f":"Lijsten!F7","v":"Papier"},""]
[null,null,null,null,{"$f":"IF(LEN(D12)>0,TRUE,FALSE)","v":false},{"$f":"IF(LEN(D12)>0,D12,\"\")","v":""},""]
["Vraag 3",null,"Wordt er een papieren versie van de individuele steekkaart meegenomen op kamp/weekend/andere activiteiten?",null,1]
["Vraag 4","a","Kunnen nieuwe leden een aantal keer proberen vooraleer ze zich definitief moeten inschrijven?","Ja",1]
[null,"b","Welke gegevens worden opgevraagd van leden die komen proberen?",null,2,{"$f":"Lijsten!D30","v":"Naam"},{"$f":"IF(E15=TRUE,F15&\", \",\"\")","v":""},{"$f":"G15&G16&G17&G18&G19","v":"E-mailadres, Telefoonnummer, Geboortedatum/Leeftijd, "},{"$f":"IF(LEN(H15)>0,LEFT(H15,LEN(H15)-2),\"\")","v":"E-mailadres, Telefoonnummer, Geboortedatum/Leeftijd"}]
[null,null,null,null,true,{"$f":"Lijsten!D15","v":"E-mailadres"},"E-mailadres, "]
[null,null,null,null,true,{"$f":"Lijsten!D38","v":"Telefoonnummer"},"Telefoonnummer, "]
[null,null,null,null,true,{"$f":"Lijsten!D18&\"/\"&Lijsten!D25","v":"Geboortedatum/Leeftijd"},"Geboortedatum/Leeftijd, "]
[null,null,null,null,{"$f":"IF(LEN(D19)>0,TRUE,FALSE)","v":false},{"$f":"IF(LEN(D19)>0,D19,\"\")","v":""},""]
[null,"c","Hoe worden deze gegevens opgevraagd?",null,false,{"$f":"Lijsten!F5","v":"Website - https://zeescoutsdeschorre.be/"},"",{"$f":"G20&G21&G22&G23&G24&G25","v":"Papier, "},{"$f":"IF(LEN(H20)>0,LEFT(H20,LEN(H20)-2),\"\")","v":"Papier"}]
[null,null,null,null,false,{"$f":"Lijsten!F11","v":"Google Drive, Google Docs, Google Spreadsheets, Google Forms"},""]
[null,null,null,null,false,{"$f":"Lijsten!F6","v":"Mailprogramma"},""]
[null,null,null,null,false,{"$f":"Lijsten!F8","v":"Telefoon"},""]
[null,null,null,null,true,{"$f":"Lijsten!F7","v":"Papier"},"Papier, "]
[null,null,null,null,{"$f":"IF(LEN(D25)>0,TRUE,FALSE)","v":false},{"$f":"IF(LEN(D25)>0,D25,\"\")","v":""},""]
[null,"d","Hoe worden deze gegevens bijgehouden?",null,true,{"$f":"Lijsten!F10","v":"MS Word, MS Excel, MS Access"},"MS Word, MS Excel, MS Access, ",{"$f":"G26&G27&G28&G29&G30","v":"MS Word, MS Excel, MS Access, Google Drive, Google Docs, Google Spreadsheets, Google Forms, Dropbox, Papier, "},{"$f":"IF(LEN(H26)>0,LEFT(H26,LEN(H26)-2),\"\")","v":"MS Word, MS Excel, MS Access, Google Drive, Google Docs, Google Spreadsheets, Google Forms, Dropbox, Papier"}]
[null,null,null,null,true,{"$f":"Lijsten!F11","v":"Google Drive, Google Docs, Google Spreadsheets, Google Forms"},"Google Drive, Google Docs, Google Spreadsheets, Google Forms, "]
[null,null,null,null,true,{"$f":"Lijsten!F12","v":"Dropbox"},"Dropbox, "]
[null,null,null,null,true,{"$f":"Lijsten!F7","v":"Papier"},"Papier, "]
[null,null,null,null,{"$f":"IF(LEN(D30)>0,TRUE,FALSE)","v":false},{"$f":"IF(LEN(D30)>0,D30,\"\")","v":""},""]
["Vraag 5",null,"Zijn er aparte mailinglijsten voor ouders of leiding?","Ja",1]
["Vraag 6","a","Bezit je groep een bestand met gegevens van oud-leiding of oud-leden?","Ja",1]
[null,"b","Welke gegevens worden bijgehouden?",null,true,{"$f":"Lijsten!D30","v":"Naam"},{"$f":"IF(E33=TRUE,F33&\", \",\"\")","v":"Naam, "},{"$f":"G33&G34&G35&G36&G37&G38&G39","v":"Naam, Totem, "},{"$f":"IF(LEN(H33)>0,LEFT(H33,LEN(H33)-2),\"\")","v":"Naam, Totem"}]
[null,null,null,null,false,{"$f":"Lijsten!D15","v":"E-mailadres"},""]
[null,null,null,null,false,{"$f":"Lijsten!D38","v":"Telefoonnummer"},""]
[null,null,null,null,false,{"$f":"F18","v":"Geboortedatum/Leeftijd"},""]
[null,null,null,null,false,{"$f":"Lijsten!D4","v":"Adres"},""]
[null,null,null,null,true,{"$f":"Lijsten!D40","v":"Totem"},"Totem, "]
[null,null,null,null,{"$f":"IF(LEN(D39)>0,TRUE,FALSE)","v":false},{"$f":"IF(LEN(D39)>0,D39,\"\")","v":""},""]
[null,"c","Hoe worden deze gegevens bijgehouden?",null,false,{"$f":"Lijsten!F10","v":"MS Word, MS Excel, MS Access"},"",{"$f":"G40&G41&G42&G43&G44","v":"Papier, "},{"$f":"IF(LEN(H40)>0,LEFT(H40,LEN(H40)-2),\"\")","v":"Papier"}]
[null,null,null,null,false,{"$f":"Lijsten!F11","v":"Google Drive, Google Docs, Google Spreadsheets, Google Forms"},""]
[null,null,null,null,false,{"$f":"Lijsten!F12","v":"Dropbox"},""]
[null,null,null,null,true,{"$f":"Lijsten!F7","v":"Papier"},"Papier, "]
[null,null,null,null,{"$f":"IF(LEN(D44)>0,TRUE,FALSE)","v":false},{"$f":"IF(LEN(D44)>0,D44,\"\")","v":""},""]
["Deel 2: Activiteiten"]
["Deel 2.1: Wekelijkse activiteiten"]
["Vraag 7","a","Moeten leden zich af en toe inschrijven voor wekelijkse activiteiten?","Ja",1]
[null,"b","Welke gegevens worden opgevraagd voor wekelijkse activiteiten?",null,true,{"$f":"Lijsten!D30","v":"Naam"},{"$f":"IF(E48=TRUE,F48&\", \",\"\")","v":"Naam, "},{"$f":"G48&G49&G50&G51&G52&G53","v":"Naam, E-mailadres, Bijzondere aandacht bij hygiëne (zelfstandigheid, allergie, bedwateren,…), Dieet, Levensbeschouwelijke overtuigingen, "},{"$f":"IF(LEN(H48)>0,LEFT(H48,LEN(H48)-2),\"\")","v":"Naam, E-mailadres, Bijzondere aandacht bij hygiëne (zelfstandigheid, allergie, bedwateren,…), Dieet, Levensbeschouwelijke overtuigingen"}]
[null,null,null,null,true,{"$f":"Lijsten!D15","v":"E-mailadres"},"E-mailadres, "]
[null,null,null,null,false,{"$f":"Lijsten!D38","v":"Telefoonnummer"},""]
[null,null,null,null,false,{"$f":"Lijsten!D21","v":"Handtekening"},""]
[null,null,null,null,true,{"$f":"Lijsten!D7&\", \"&Lijsten!D14&\", \"&Lijsten!D26","v":"Bijzondere aandacht bij hygiëne (zelfstandigheid, allergie, bedwateren,…), Dieet, Levensbeschouwelijke overtuigingen"},"Bijzondere aandacht bij hygiëne (zelfstandigheid, allergie, bedwateren,…), Dieet, Levensbeschouwelijke overtuigingen, "]
[null,null,null,null,{"$f":"IF(LEN(D53)>0,TRUE,FALSE)","v":false},{"$f":"IF(LEN(D53)>0,D53,\"\")","v":""},""]
[null,"c","Hoe worden deze gegevens opgevraagd?",null,false,{"$f":"Lijsten!F5","v":"Website - https://zeescoutsdeschorre.be/"},"",{"$f":"G54&G55&G56&G57&G58&G59","v":"Google Drive, Google Docs, Google Spreadsheets, Google Forms, "},{"$f":"IF(LEN(H54)>0,LEFT(H54,LEN(H54)-2),\"\")","v":"Google Drive, Google Docs, Google Spreadsheets, Google Forms"}]
[null,null,null,null,true,{"$f":"Lijsten!F11","v":"Google Drive, Google Docs, Google Spreadsheets, Google Forms"},"Google Drive, Google Docs, Google Spreadsheets, Google Forms, "]
[null,null,null,null,false,{"$f":"Lijsten!F6","v":"Mailprogramma"},""]
[null,null,null,null,false,{"$f":"Lijsten!F8","v":"Telefoon"},""]
[null,null,null,null,false,{"$f":"Lijsten!F7","v":"Papier"},""]
[null,null,null,null,{"$f":"IF(LEN(D59)>0,TRUE,FALSE)","v":false},{"$f":"IF(LEN(D59)>0,D59,\"\")","v":""},""]
[null,"d","Hoe worden deze gegevens bijgehouden?",null,false,{"$f":"Lijsten!F10","v":"MS Word, MS Excel, MS Access"},"",{"$f":"G60&G61&G62&G63&G64","v":"Google Drive, Google Docs, Google Spreadsheets, Google Forms, "},{"$f":"IF(LEN(H60)>0,LEFT(H60,LEN(H60)-2),\"\")","v":"Google Drive, Google Docs, Google Spreadsheets, Google Forms"}]
[null,null,null,null,true,{"$f":"Lijsten!F11","v":"Google Drive, Google Docs, Google Spreadsheets, Google Forms"},"Google Drive, Google Docs, Google Spreadsheets, Google Forms, "]
[null,null,null,null,false,{"$f":"Lijsten!F12","v":"Dropbox"},""]
[null,null,null,null,false,{"$f":"Lijsten!F7","v":"Papier"},""]
[null,null,null,null,{"$f":"IF(LEN(D64)>0,TRUE,FALSE)","v":false},{"$f":"IF(LEN(D64)>0,D64,\"\")","v":""},""]
[null,"e","Wordt er een papieren versie van deze gegevens meegenomen?","Ja",1]
[null,"f","Zijn deze wekelijkse activiteiten soms betalend?","Ja",1]
["Vraag 8","a","Worden er carpoollijsten gemaakt voor wekelijkse activiteiten?","Ja",2]
[null,"b","Welke gegevens worden opgevraagd voor deze carpoollijsten?",null,false,{"$f":"Lijsten!D30","v":"Naam"},{"$f":"IF(E68=TRUE,F68&\", \",\"\")","v":""},{"$f":"G68&G69&G70&G71","v":""},{"$f":"IF(LEN(H68)>0,LEFT(H68,LEN(H68)-2),\"\")","v":""}]
[null,null,null,null,false,{"$f":"Lijsten!D15","v":"E-mailadres"},""]
[null,null,null,null,false,{"$f":"Lijsten!D38","v":"Telefoonnummer"},""]
[null,null,null,null,{"$f":"IF(LEN(D71)>0,TRUE,FALSE)","v":false},{"$f":"IF(LEN(D71)>0,D71,\"\")","v":""},""]
[null,"c","Hoe worden deze gegevens opgevraagd?",null,false,{"$f":"Lijsten!F5","v":"Website - https://zeescoutsdeschorre.be/"},"",{"$f":"G72&G73&G74&G75&G76&G77","v":""},{"$f":"IF(LEN(H72)>0,LEFT(H72,LEN(H72)-2),\"\")","v":""}]
[null,null,null,null,false,{"$f":"Lijsten!F11","v":"Google Drive, Google Docs, Google Spreadsheets, Google Forms"},""]
[null,null,null,null,false,{"$f":"Lijsten!F6","v":"Mailprogramma"},""]
[null,null,null,null,false,{"$f":"Lijsten!F8","v":"Telefoon"},""]
[null,null,null,null,false,{"$f":"Lijsten!F7","v":"Papier"},""]
[null,null,null,null,{"$f":"IF(LEN(D77)>0,TRUE,FALSE)","v":false},{"$f":"IF(LEN(D77)>0,D77,\"\")","v":""},""]
[null,"d","Hoe worden deze gegevens bijgehouden?",null,false,{"$f":"Lijsten!F10","v":"MS Word, MS Excel, MS Access"},"",{"$f":"G78&G79&G80&G81&G82","v":""},{"$f":"IF(LEN(H78)>0,LEFT(H78,LEN(H78)-2),\"\")","v":""}]
[null,null,null,null,false,{"$f":"Lijsten!F11","v":"Google Drive, Google Docs, Google Spreadsheets, Google Forms"},""]
[null,null,null,null,false,{"$f":"Lijsten!F12","v":"Dropbox"},""]
[null,null,null,null,false,{"$f":"Lijsten!F7","v":"Papier"},""]
[null,null,null,null,{"$f":"IF(LEN(D82)>0,TRUE,FALSE)","v":false},{"$f":"IF(LEN(D82)>0,D82,\"\")","v":""},""]
[null,"e","Wordt er een papieren versie van deze gegevens gebruikt?","Ja",2]
["Deel 2.2: Geldactiviteiten"]
["Vraag 9","a","Worden er gegevens opgevraagd bij geldactiviteiten?","Ja",2]
[null,"b","Welke gegevens worden opgevraagd bij geldactiviteiten?",null,true,{"$f":"Lijsten!D30","v":"Naam"},{"$f":"IF(E86=TRUE,F86&\", \",\"\")","v":"Naam, "},{"$f":"G86&G87&G88&G89&G90&G91","v":"Naam, E-mailadres, Telefoonnummer, Adres, Bijzondere aandacht bij hygiëne (zelfstandigheid, allergie, bedwateren,…), Dieet, Levensbeschouwelijke overtuigingen, "},{"$f":"IF(LEN(H86)>0,LEFT(H86,LEN(H86)-2),\"\")","v":"Naam, E-mailadres, Telefoonnummer, Adres, Bijzondere aandacht bij hygiëne (zelfstandigheid, allergie, bedwateren,…), Dieet, Levensbeschouwelijke overtuigingen"}]
[null,null,null,null,true,{"$f":"Lijsten!D15","v":"E-mailadres"},"E-mailadres, "]
[null,null,null,null,true,{"$f":"Lijsten!D38","v":"Telefoonnummer"},"Telefoonnummer, "]
[null,null,null,null,true,{"$f":"Lijsten!D4","v":"Adres"},"Adres, "]
[null,null,null,null,true,{"$f":"F52","v":"Bijzondere aandacht bij hygiëne (zelfstandigheid, allergie, bedwateren,…), Dieet, Levensbeschouwelijke overtuigingen"},"Bijzondere aandacht bij hygiëne (zelfstandigheid, allergie, bedwateren,…), Dieet, Levensbeschouwelijke overtuigingen, "]
[null,null,null,null,{"$f":"IF(LEN(D91)>0,TRUE,FALSE)","v":false},{"$f":"IF(LEN(D91)>0,D91,\"\")","v":""},""]
[null,"c","Hoe worden deze gegevens opgevraagd?",null,true,{"$f":"Lijsten!F5","v":"Website - https://zeescoutsdeschorre.be/"},"Website - https://zeescoutsdeschorre.be/, ",{"$f":"G92&G93&G94&G95&G96&G97","v":"Website - https://zeescoutsdeschorre.be/, Google Drive, Google Docs, Google Spreadsheets, Google Forms, Mailprogramma, Telefoon, Papier, "},{"$f":"IF(LEN(H92)>0,LEFT(H92,LEN(H92)-2),\"\")","v":"Website - https://zeescoutsdeschorre.be/, Google Drive, Google Docs, Google Spreadsheets, Google Forms, Mailprogramma, Telefoon, Papier"}]
[null,null,null,null,true,{"$f":"Lijsten!F11","v":"Google Drive, Google Docs, Google Spreadsheets, Google Forms"},"Google Drive, Google Docs, Google Spreadsheets, Google Forms, "]
[null,null,null,null,true,{"$f":"Lijsten!F6","v":"Mailprogramma"},"Mailprogramma, "]
[null,null,null,null,true,{"$f":"Lijsten!F8","v":"Telefoon"},"Telefoon, "]
[null,null,null,null,true,{"$f":"Lijsten!F7","v":"Papier"},"Papier, "]
[null,null,null,null,{"$f":"IF(LEN(D97)>0,TRUE,FALSE)","v":false},{"$f":"IF(LEN(D97)>0,D97,\"\")","v":""},""]
[null,"d","Hoe worden deze gegevens bijgehouden?",null,true,{"$f":"Lijsten!F10","v":"MS Word, MS Excel, MS Access"},"MS Word, MS Excel, MS Access, ",{"$f":"G98&G99&G100&G101&G102","v":"MS Word, MS Excel, MS Access, Google Drive, Google Docs, Google Spreadsheets, Google Forms, Dropbox, Papier, "},{"$f":"IF(LEN(H98)>0,LEFT(H98,LEN(H98)-2),\"\")","v":"MS Word, MS Excel, MS Access, Google Drive, Google Docs, Google Spreadsheets, Google Forms, Dropbox, Papier"}]
[null,null,null,null,true,{"$f":"Lijsten!F11","v":"Google Drive, Google Docs, Google Spreadsheets, Google Forms"},"Google Drive, Google Docs, Google Spreadsheets, Google Forms, "]
[null,null,null,null,true,{"$f":"Lijsten!F12","v":"Dropbox"},"Dropbox, "]
[null,null,null,null,true,{"$f":"Lijsten!F7","v":"Papier"},"Papier, "]
[null,null,null,null,{"$f":"IF(LEN(D102)>0,TRUE,FALSE)","v":false},{"$f":"IF(LEN(D102)>0,D102,\"\")","v":""},""]
[null,"e","Wordt er een papieren versie van deze gegevens gebruikt?","Ja",1]
["Deel 2.3: Kampen en weekends"]
["Vraag 10","a","Moeten leden zich inschrijven voor kampen of weekends?","Ja",1]
[null,"b","Welke gegevens worden opgevraagd bij kampen of weekends?",null,true,{"$f":"Lijsten!D30","v":"Naam"},{"$f":"IF(E106=TRUE,F106&\", \",\"\")","v":"Naam, "},{"$f":"G106&G107&G108&G109&G110&G111","v":"Naam, E-mailadres, Telefoonnummer, Bijzondere aandacht bij hygiëne (zelfstandigheid, allergie, bedwateren,…), Dieet, Levensbeschouwelijke overtuigingen, "},{"$f":"IF(LEN(H106)>0,LEFT(H106,LEN(H106)-2),\"\")","v":"Naam, E-mailadres, Telefoonnummer, Bijzondere aandacht bij hygiëne (zelfstandigheid, allergie, bedwateren,…), Dieet, Levensbeschouwelijke overtuigingen"}]
[null,null,null,null,true,{"$f":"Lijsten!D15","v":"E-mailadres"},"E-mailadres, "]
[null,null,null,null,true,{"$f":"Lijsten!D38","v":"Telefoonnummer"},"Telefoonnummer, "]
[null,null,null,null,false,{"$f":"Lijsten!D21","v":"Handtekening"},""]
[null,null,null,null,true,{"$f":"Vragenlijst!F90","v":"Bijzondere aandacht bij hygiëne (zelfstandigheid, allergie, bedwateren,…), Dieet, Levensbeschouwelijke overtuigingen"},"Bijzondere aandacht bij hygiëne (zelfstandigheid, allergie, bedwateren,…), Dieet, Levensbeschouwelijke overtuigingen, "]
[null,null,null,null,{"$f":"IF(LEN(D111)>0,TRUE,FALSE)","v":false},{"$f":"IF(LEN(D111)>0,D111,\"\")","v":""},""]
[null,"c","Welke gegevens worden extra opgevraagd bij buitenlandse kampen of weekends?",null,true,{"$f":"Lijsten!D37","v":"Rijksregisternummer"},"Rijksregisternummer, ",{"$f":"G112&G113&G114&G115","v":"Rijksregisternummer, Identiteitskaartnummer, "},{"$f":"IF(LEN(H112)>0,LEFT(H112,LEN(H112)-2),\"\")","v":"Rijksregisternummer, Identiteitskaartnummer"}]
[null,null,null,null,true,{"$f":"Lijsten!D22","v":"Identiteitskaartnummer"},"Identiteitskaartnummer, "]
[null,null,null,null,false,{"$f":"Lijsten!D36","v":"Paspoortnummer"},""]
[null,null,null,null,{"$f":"IF(LEN(D115)>0,TRUE,FALSE)","v":false},{"$f":"IF(LEN(D115)>0,D115,\"\")","v":""},""]
[null,"d","Hoe worden deze gegevens opgevraagd?",null,false,{"$f":"Lijsten!F5","v":"Website - https://zeescoutsdeschorre.be/"},"",{"$f":"G116&G117&G118&G119&G120&G121","v":"Mailprogramma, Papier, "},{"$f":"IF(LEN(H116)>0,LEFT(H116,LEN(H116)-2),\"\")","v":"Mailprogramma, Papier"}]
[null,null,null,null,false,{"$f":"Lijsten!F11","v":"Google Drive, Google Docs, Google Spreadsheets, Google Forms"},""]
[null,null,null,null,true,{"$f":"Lijsten!F6","v":"Mailprogramma"},"Mailprogramma, "]
[null,null,null,null,false,{"$f":"Lijsten!F8","v":"Telefoon"},""]
[null,null,null,null,true,{"$f":"Lijsten!F7","v":"Papier"},"Papier, "]
[null,null,null,null,{"$f":"IF(LEN(D121)>0,TRUE,FALSE)","v":false},{"$f":"IF(LEN(D121)>0,D121,\"\")","v":""},""]
[null,"e","Hoe worden deze gegevens bijgehouden?",null,false,{"$f":"Lijsten!F10","v":"MS Word, MS Excel, MS Access"},"",{"$f":"G122&G123&G124&G125&G126","v":"Papier, "},{"$f":"IF(LEN(H122)>0,LEFT(H122,LEN(H122)-2),\"\")","v":"Papier"}]
[null,null,null,null,false,{"$f":"Lijsten!F11","v":"Google Drive, Google Docs, Google Spreadsheets, Google Forms"},""]
[null,null,null,null,false,{"$f":"Lijsten!F12","v":"Dropbox"},""]
[null,null,null,null,true,{"$f":"Lijsten!F7","v":"Papier"},"Papier, "]
[null,null,null,null,{"$f":"IF(LEN(D126)>0,TRUE,FALSE)","v":false},{"$f":"IF(LEN(D126)>0,D126,\"\")","v":""},""]
[null,"f","Wordt er een papieren versie van deze gegevens meegenomen?","Ja",1]
["Vraag 11",null,"Worden kampboekjes gedrukt bij een drukkerij?","Ja",1]
["Vraag 12","a","Worden er carpoollijsten gemaakt voor kampen en/of weekends?","Ja",2]
[null,"b","Welke gegevens worden opgevraagd voor deze carpoollijsten?",null,true,{"$f":"Lijsten!D30","v":"Naam"},{"$f":"IF(E130=TRUE,F130&\", \",\"\")","v":"Naam, "},{"$f":"G130&G131&G132&G133","v":"Naam, E-mailadres, Telefoonnummer, "},{"$f":"IF(LEN(H130)>0,LEFT(H130,LEN(H130)-2),\"\")","v":"Naam, E-mailadres, Telefoonnummer"}]
[null,null,null,null,true,{"$f":"Lijsten!D15","v":"E-mailadres"},"E-mailadres, "]
[null,null,null,null,true,{"$f":"Lijsten!D38","v":"Telefoonnummer"},"Telefoonnummer, "]
[null,null,null,null,{"$f":"IF(LEN(D133)>0,TRUE,FALSE)","v":false},{"$f":"IF(LEN(D133)>0,D133,\"\")","v":""},""]
[null,"c","Hoe worden deze gegevens opgevraagd?",null,true,{"$f":"Lijsten!F5","v":"Website - https://zeescoutsdeschorre.be/"},"Website - https://zeescoutsdeschorre.be/, ",{"$f":"G134&G135&G136&G137&G138&G139","v":"Website - https://zeescoutsdeschorre.be/, Google Drive, Google Docs, Google Spreadsheets, Google Forms, Mailprogramma, Telefoon, Papier, "},{"$f":"IF(LEN(H134)>0,LEFT(H134,LEN(H134)-2),\"\")","v":"Website - https://zeescoutsdeschorre.be/, Google Drive, Google Docs, Google Spreadsheets, Google Forms, Mailprogramma, Telefoon, Papier"}]
[null,null,null,null,true,{"$f":"Lijsten!F11","v":"Google Drive, Google Docs, Google Spreadsheets, Google Forms"},"Google Drive, Google Docs, Google Spreadsheets, Google Forms, "]
[null,null,null,null,true,{"$f":"Lijsten!F6","v":"Mailprogramma"},"Mailprogramma, "]
[null,null,null,null,true,{"$f":"Lijsten!F8","v":"Telefoon"},"Telefoon, "]
[null,null,null,null,true,{"$f":"Lijsten!F7","v":"Papier"},"Papier, "]
[null,null,null,null,{"$f":"IF(LEN(D139)>0,TRUE,FALSE)","v":false},{"$f":"IF(LEN(D139)>0,D139,\"\")","v":""},""]
[null,"d","Hoe worden deze gegevens bijgehouden?",null,true,{"$f":"Lijsten!F10","v":"MS Word, MS Excel, MS Access"},"MS Word, MS Excel, MS Access, ",{"$f":"G140&G141&G142&G143&G144","v":"MS Word, MS Excel, MS Access, Google Drive, Google Docs, Google Spreadsheets, Google Forms, Dropbox, Papier, "},{"$f":"IF(LEN(H140)>0,LEFT(H140,LEN(H140)-2),\"\")","v":"MS Word, MS Excel, MS Access, Google Drive, Google Docs, Google Spreadsheets, Google Forms, Dropbox, Papier"}]
[null,null,null,null,true,{"$f":"Lijsten!F11","v":"Google Drive, Google Docs, Google Spreadsheets, Google Forms"},"Google Drive, Google Docs, Google Spreadsheets, Google Forms, "]
[null,null,null,null,true,{"$f":"Lijsten!F12","v":"Dropbox"},"Dropbox, "]
[null,null,null,null,true,{"$f":"Lijsten!F7","v":"Papier"},"Papier, "]
[null,null,null,null,{"$f":"IF(LEN(D144)>0,TRUE,FALSE)","v":false},{"$f":"IF(LEN(D144)>0,D144,\"\")","v":""},""]
[null,"e","Wordt er een papieren versie van deze gegevens gebruikt?","Ja",1]
["Deel 3: Publicaties"]
["Vraag 13","a","Wordt beeldmateriaal gemaakt tijdens activiteiten/weekends/kampen gepubliceerd?","Ja",1]
[null,"b","Via welke kanalen wordt dit gepubliceerd?",null,true,{"$f":"Lijsten!F5","v":"Website - https://zeescoutsdeschorre.be/"},{"$f":"IF(E148=TRUE,F148&\", \",\"\")","v":"Website - https://zeescoutsdeschorre.be/, "},{"$f":"G148&G149&G150&G151&G152&G153","v":"Website - https://zeescoutsdeschorre.be/, Facebook, Instagram, Youtube , "},{"$f":"IF(LEN(H148)>0,LEFT(H148,LEN(H148)-2),\"\")","v":"Website - https://zeescoutsdeschorre.be/, Facebook, Instagram, Youtube "}]
[null,null,null,null,true,{"$f":"Lijsten!F13","v":"Facebook"},"Facebook, "]
[null,null,null,null,true,{"$f":"Lijsten!F14","v":"Instagram"},"Instagram, "]
[null,null,null,null,false,{"$f":"Lijsten!F15","v":"Whatsapp"},""]
[null,null,null,null,false,{"$f":"Lijsten!F16","v":"Snapchat"},""]
[null,null,null,"Youtube ",{"$f":"IF(LEN(D153)>0,TRUE,FALSE)","v":true},{"$f":"IF(LEN(D153)>0,D153,\"\")","v":"Youtube "},"Youtube , "]
["Vraag 14",null,"Welke gegevens van leiding/leden worden gepubliceerd op de website, in programmaboekjes of in andere publicaties?",null,true,{"$f":"Lijsten!D30","v":"Naam"},"Naam, ",{"$f":"G154&G155&G156&G157&G158&G159&G160","v":"Naam, E-mailadres, Telefoonnummer, "},{"$f":"IF(LEN(H154)>0,LEFT(H154,LEN(H154)-2),\"\")","v":"Naam, E-mailadres, Telefoonnummer"}]
[null,null,null,null,true,{"$f":"Lijsten!D15","v":"E-mailadres"},"E-mailadres, "]
[null,null,null,null,true,{"$f":"Lijsten!D38","v":"Telefoonnummer"},"Telefoonnummer, "]
[null,null,null,null,false,{"$f":"F36","v":"Geboortedatum/Leeftijd"},""]
[null,null,null,null,false,{"$f":"Lijsten!D4","v":"Adres"},""]
[null,null,null,null,false,{"$f":"Lijsten!D40","v":"Totem"},""]
[null,null,null,null,{"$f":"IF(LEN(D160)>0,TRUE,FALSE)","v":false},{"$f":"IF(LEN(D160)>0,D160,\"\")","v":""},""]
["Vraag 15",null,"Worden programmaboekjes gedrukt bij een drukkerij?","Ja",1]
["Deel 4: Verhuur"]
["Vraag 16","a","Verhuurt je groep materiaal en/of lokalen?","Ja",2]
[null,"b","Welke gegevens worden opgevraagd bij het verhuren van materiaal en/of lokalen?",null,true,{"$f":"Lijsten!D30","v":"Naam"},{"$f":"IF(E164=TRUE,F164&\", \",\"\")","v":"Naam, "},{"$f":"G164&G165&G166&G167&G168&G169&G170","v":"Naam, E-mailadres, Telefoonnummer, Geboortedatum/Leeftijd, Adres, Handtekening, "},{"$f":"IF(LEN(H164)>0,LEFT(H164,LEN(H164)-2),\"\")","v":"Naam, E-mailadres, Telefoonnummer, Geboortedatum/Leeftijd, Adres, Handtekening"}]
[null,null,null,null,true,{"$f":"Lijsten!D15","v":"E-mailadres"},"E-mailadres, "]
[null,null,null,null,true,{"$f":"Lijsten!D38","v":"Telefoonnummer"},"Telefoonnummer, "]
[null,null,null,null,true,{"$f":"Vragenlijst!F157","v":"Geboortedatum/Leeftijd"},"Geboortedatum/Leeftijd, "]
[null,null,null,null,true,{"$f":"Lijsten!D4","v":"Adres"},"Adres, "]
[null,null,null,null,true,{"$f":"Lijsten!D21","v":"Handtekening"},"Handtekening, "]
[null,null,null,null,{"$f":"IF(LEN(D170)>0,TRUE,FALSE)","v":false},{"$f":"IF(LEN(D170)>0,D170,\"\")","v":""},""]
[null,"c","Hoe worden deze gegevens opgevraagd?",null,true,{"$f":"Lijsten!F5","v":"Website - https://zeescoutsdeschorre.be/"},"Website - https://zeescoutsdeschorre.be/, ",{"$f":"G171&G172&G173&G174&G175&G176","v":"Website - https://zeescoutsdeschorre.be/, Google Drive, Google Docs, Google Spreadsheets, Google Forms, Mailprogramma, Telefoon, Papier, "},{"$f":"IF(LEN(H171)>0,LEFT(H171,LEN(H171)-2),\"\")","v":"Website - https://zeescoutsdeschorre.be/, Google Drive, Google Docs, Google Spreadsheets, Google Forms, Mailprogramma, Telefoon, Papier"}]
[null,null,null,null,true,{"$f":"Lijsten!F11","v":"Google Drive, Google Docs, Google Spreadsheets, Google Forms"},"Google Drive, Google Docs, Google Spreadsheets, Google Forms, "]
[null,null,null,null,true,{"$f":"Lijsten!F6","v":"Mailprogramma"},"Mailprogramma, "]
[null,null,null,null,true,{"$f":"Lijsten!F8","v":"Telefoon"},"Telefoon, "]
[null,null,null,null,true,{"$f":"Lijsten!F7","v":"Papier"},"Papier, "]
[null,null,null,null,{"$f":"IF(LEN(D176)>0,TRUE,FALSE)","v":false},{"$f":"IF(LEN(D176)>0,D176,\"\")","v":""},""]
[null,"d","Hoe worden deze gegevens bijgehouden?",null,true,{"$f":"Lijsten!F10","v":"MS Word, MS Excel, MS Access"},"MS Word, MS Excel, MS Access, ",{"$f":"G177&G178&G179&G180&G181","v":"MS Word, MS Excel, MS Access, Google Drive, Google Docs, Google Spreadsheets, Google Forms, Dropbox, Papier, "},{"$f":"IF(LEN(H177)>0,LEFT(H177,LEN(H177)-2),\"\")","v":"MS Word, MS Excel, MS Access, Google Drive, Google Docs, Google Spreadsheets, Google Forms, Dropbox, Papier"}]
[null,null,null,null,true,{"$f":"Lijsten!F11","v":"Google Drive, Google Docs, Google Spreadsheets, Google Forms"},"Google Drive, Google Docs, Google Spreadsheets, Google Forms, "]
[null,null,null,null,true,{"$f":"Lijsten!F12","v":"Dropbox"},"Dropbox, "]
[null,null,null,null,true,{"$f":"Lijsten!F7","v":"Papier"},"Papier, "]
[null,null,null,null,{"$f":"IF(LEN(D181)>0,TRUE,FALSE)","v":false},{"$f":"IF(LEN(D181)>0,D181,\"\")","v":""},""]
["Goed gedaan, je hebt een einde van deze vragenlijst bereikt ;-) Als alles goed is verlopen, kan je in het tabblad hiernaast (Verwerkingsregister) het verwerkingsregister op maat van je groep terugvinden. Als er zaken wijzigen in je groep, kan je steeds deze vragenlijst aanpassen en zal het verwerkingsregister opnieuw gegenereerd worden."]
[]
[]
[]
[null,null," "]

{"sheet":"Verwerkingsregister","index":3,"n_rows":37,"n_cols":15,"rows_kept":37,"cut":false,"hidden":false,"merged":[[0,0,0,3],[0,4,0,7],[0,12,0,13],[0,14,1,14],[0,8,0,11]]}
["Algemene informatie",null,null,null,"Belanghebbenden",null,null,null,"Verwerkte gegevens",null,null,null,"Juridische kwalificaties",null,"Volgorde"]
["Naam hoofdproces","Naam deelproces","Naam sub-deelproces","Categorieën verwerking","Categorieën betrokkenen","Verantwoordelijken","Verwerkers","Ontvangers","Persoonsgegevens","Gegevensbron","Gebruikte technologie","Bewaartermijn","Verwerkingsdoel","Verwerkingsgrond"]
["Ledenadministratie","Nieuw lid","Gegevens opvragen",{"$f":"Lijsten!B4&\", \"&Lijsten!B5","v":"Normale verwerking, Gegevens van minderjarigen"},{"$f":"Lijsten!B10&\", \"&Lijsten!B11&\", \"&Lijsten!B12","v":"Lid, Leiding, Ouder/voogd"},{"$f":"Lijsten!$B$22","v":"Scouts en Gidsen Vlaanderen vzw"},{"$f":"IF(F3=Lijsten!$B$22,Lijsten!$B$27,Lijsten!$B$26)","v":"W1404G - Zeescouts De Schorre"},{"$f":"Lijsten!$B$30","v":"Geen ontvanger"},{"$f":"Lijsten!$D$4&\", \"&Lijsten!$D$5&\", \"&Lijsten!$D$15&\", \"&Lijsten!$D$16&\", \"&Lijsten!$D$18&\", \"&Lijsten!$D$20&\", \"&Lijsten!$D$24&\", \"&Lijsten!$D$30&\", \"&Lijsten!$D$38","v":"Adres, Bankrekeningnummer, E-mailadres, Financiële hulp, Geboortedatum, Geslacht, IP-adres, Naam, Telefoonnummer"},{"$f":"Lijsten!B36&\", \"&Lijsten!B37","v":"Betrokkene zelf, Ouder/voogd van betrokkene"},{"$f":"Vragenlijst!I3","v":"Groepsadministratie, Mailprogramma"},"10 jaar",{"$f":"Lijsten!F19","v":"Ledenbeheer"},{"$f":"Lijsten!F28","v":"Uitvoering van een contract/overeenkomst"},1]
["Ledenadministratie","Nieuw lid","Gegevens invoeren in Groepsadmin",{"$f":"D3","v":"Normale verwerking, Gegevens van minderjarigen"},{"$f":"E3","v":"Lid, Leiding, Ouder/voogd"},{"$f":"Lijsten!$B$22","v":"Scouts en Gidsen Vlaanderen vzw"},{"$f":"IF(F4=Lijsten!$B$22,Lijsten!$B$27,Lijsten!$B$26)","v":"W1404G - Zeescouts De Schorre"},{"$f":"Lijsten!$B$30","v":"Geen ontvanger"},{"$f":"I3","v":"Adres, Bankrekeningnummer, E-mailadres, Financiële hulp, Geboortedatum, Geslacht, IP-adres, Naam, Telefoonnummer"},{"$f":"J3","v":"Betrokkene zelf, Ouder/voogd van betrokkene"},{"$f":"K3","v":"Groepsadministratie, Mailprogramma"},{"$f":"L3","v":"10 jaar"},{"$f":"M3","v":"Ledenbeheer"},"Uitvoering van een contract/overeenkomst",2]
["Ledenadministratie","Individuele steekkaart","Gegevens opvragen",{"$f":"Lijsten!B4&\", \"&Lijsten!B5&\", \"&Lijsten!B6&\", \"&Lijsten!B7","v":"Normale verwerking, Gegevens van minderjarigen, Gegevens waaruit religieuze of levenbeschouwelijke overtuigingen blijken, Gezondheidsgegevens"},{"$f":"Lijsten!B10&\", \"&Lijsten!B11&\", \"&Lijsten!B12&\", \"&Lijsten!B13","v":"Lid, Leiding, Ouder/voogd, Familie van lid"},{"$f":"Lijsten!$B$22","v":"Scouts en Gidsen Vlaanderen vzw"},{"$f":"IF(F5=Lijsten!$B$22,Lijsten!$B$27,Lijsten!$B$26)","v":"W1404G - Zeescouts De Schorre"},{"$f":"Lijsten!$B$30","v":"Geen ontvanger"},{"$f":"Lijsten!$D$4&\", \"&Lijsten!$D$6&\", \"&Lijsten!$D$7&\", \"&Lijsten!$D$8&\", \"&Lijsten!$D$9&\", \"&Lijsten!$D$10&\", \"&Lijsten!$D$14&\", \"&Lijsten!$D$15&\", \"&Lijsten!$D$18&\", \"&Lijsten!$D$24&\", \"&Lijsten!$D$26&\", \"&Lijsten!$D$28&\", \"&Lijsten!$D$29&\", \"&Lijsten!$D$30&\", \"&Lijsten!$D$34&\", \"&Lijsten!$D$35&\", \"&Lijsten!$D$38","v":"Adres, Bijzondere aandacht bij beperkingen of andere zorgen, Bijzondere aandacht bij hygiëne (zelfstandigheid, allergie, bedwateren,…), Bijzondere aandacht bij sociale omgang (pesten, heimwee, angsten, slaapwandelen,…), Bijzondere aandacht bij sporten (zwemmen, fietsen, hoogte, rust,…), Bloedgroep, Dieet, E-mailadres, Geboortedatum, IP-adres, Levensbeschouwelijke overtuigingen, Lidnummer, Medisch dossier, Naam, Overzicht specifieke medicatie, Overzicht ziekten, Telefoonnummer"},{"$f":"J4","v":"Betrokkene zelf, Ouder/voogd van betrokkene"},{"$f":"Vragenlijst!I9","v":"Groepsadministratie"},{"$f":"L4","v":"10 jaar"},"Ledenbeheer",{"$f":"Lijsten!F30","v":"Toestemming"},3]
["Ledenadministratie","Individuele steekkaart","Papieren versie gebruiken",{"$f":"D5","v":"Normale verwerking, Gegevens van minderjarigen, Gegevens waaruit religieuze of levenbeschouwelijke overtuigingen blijken, Gezondheidsgegevens"},{"$f":"E5","v":"Lid, Leiding, Ouder/voogd, Familie van lid"},{"$f":"Lijsten!$B$22","v":"Scouts en Gidsen Vlaanderen vzw"},{"$f":"IF(F6=Lijsten!$B$22,Lijsten!$B$27,Lijsten!$B$26)","v":"W1404G - Zeescouts De Schorre"},{"$f":"Lijsten!$B$30","v":"Geen ontvanger"},{"$f":"I5","v":"Adres, Bijzondere aandacht bij beperkingen of andere zorgen, Bijzondere aandacht bij hygiëne (zelfstandigheid, allergie, bedwateren,…), Bijzondere aandacht bij sociale omgang (pesten, heimwee, angsten, slaapwandelen,…), Bijzondere aandacht bij sporten (zwemmen, fietsen, hoogte, rust,…), Bloedgroep, Dieet, E-mailadres, Geboortedatum, IP-adres, Levensbeschouwelijke overtuigingen, Lidnummer, Medisch dossier, Naam, Overzicht specifieke medicatie, Overzicht ziekten, Telefoonnummer"},"Betrokkene zelf, Ouder/voogd van betrokkene",{"$f":"K5","v":"Groepsadministratie"},{"$f":"L5","v":"10 jaar"},"Ledenbeheer","Toestemming",4]
["Ledenadministratie","Aantal keer proberen","Gegevens opvragen en bewaren",{"$f":"Lijsten!B4&\", \"&Lijsten!B5","v":"Normale verwerking, Gegevens van minderjarigen"},{"$f":"Lijsten!B10&\", \"&Lijsten!B12","v":"Lid, Ouder/voogd"},{"$f":"Lijsten!$B$22","v":"Scouts en Gidsen Vlaanderen vzw"},{"$f":"IF(F7=Lijsten!$B$22,Lijsten!$B$27,Lijsten!$B$26)","v":"W1404G - Zeescouts De Schorre"},{"$f":"Lijsten!$B$30","v":"Geen ontvanger"},{"$f":"Vragenlijst!I15","v":"E-mailadres, Telefoonnummer, Geboortedatum/Leeftijd"},"Betrokkene zelf, Ouder/voogd van betrokkene",{"$f":"Vragenlijst!I20","v":"Papier"},"10 jaar","Ledenbeheer",{"$f":"N4","v":"Uitvoering van een contract/overeenkomst"},5]
["Ledenadministratie","Mailinglijsten","Opstellen en onderhouden",{"$f":"Lijsten!B4&\", \"&Lijsten!B5","v":"Normale verwerking, Gegevens van minderjarigen"},{"$f":"Lijsten!B10&\", \"&Lijsten!B11&\", \"&Lijsten!B12&\", \"&Lijsten!B14&\", \"&Lijsten!B15&\", \"&Lijsten!B16","v":"Lid, Leiding, Ouder/voogd, Sympathisant, Oud-lid, Oud-leiding"},{"$f":"Lijsten!$B$23","v":"W1404G - Zeescouts De Schorre"},{"$f":"IF(F8=Lijsten!$B$22,Lijsten!$B$27,Lijsten!$B$26)","v":"Geen verwerker"},{"$f":"Lijsten!$B$30","v":"Geen ontvanger"},{"$f":"Lijsten!D15","v":"E-mailadres"},"Betrokkene zelf, Ouder/voogd van betrokkene",{"$f":"Lijsten!F5&\", \"&Lijsten!F6","v":"Website - https://zeescoutsdeschorre.be/, Mailprogramma"},"10 jaar","Ledenbeheer","Uitvoering van een contract/overeenkomst",6]
["Ledenadministratie","Divers","Oud-leden/leidingbestand bijhouden",{"$f":"Lijsten!B4&\", \"&Lijsten!B5","v":"Normale verwerking, Gegevens van minderjarigen"},{"$f":"Lijsten!B15&\", \"&Lijsten!B16","v":"Oud-lid, Oud-leiding"},{"$f":"Lijsten!$B$23","v":"W1404G - Zeescouts De Schorre"},{"$f":"IF(F9=Lijsten!$B$22,Lijsten!$B$27,Lijsten!$B$26)","v":"Geen verwerker"},{"$f":"Lijsten!$B$30","v":"Geen ontvanger"},{"$f":"Vragenlijst!I33","v":"Naam, Totem"},"Betrokkene zelf, Ouder/voogd van betrokkene",{"$f":"Vragenlijst!I40","v":"Papier"},"50 jaar",{"$f":"M8","v":"Ledenbeheer"},{"$f":"Lijsten!F31","v":"Gerechtvaardigd belang"},7]
["Ledenadministratie","Divers","Subsidies aanvragen bij gemeente",{"$f":"Lijsten!B4&\", \"&Lijsten!B5","v":"Normale verwerking, Gegevens van minderjarigen"},{"$f":"Lijsten!B10&\", \"&Lijsten!B11","v":"Lid, Leiding"},{"$f":"Lijsten!$B$23","v":"W1404G - Zeescouts De Schorre"},{"$f":"IF(F9=Lijsten!$B$22,Lijsten!$B$27,Lijsten!$B$26)","v":"Geen verwerker"},{"$f":"Lijsten!$B$30","v":"Geen ontvanger"},{"$f":"Lijsten!D30&\", \"&Lijsten!D4&\", \"&Lijsten!D38&\", \"&Lijsten!D18","v":"Naam, Adres, Telefoonnummer, Geboortedatum"}]
["Activiteiten","Wekelijkse activiteiten","Inschrijvingen opvragen",{"$f":"Lijsten!$B$4&\", \"&Lijsten!$B$5&IF(Vragenlijst!E52=TRUE,\", \"&Lijsten!$B$6&\", \"&Lijsten!$B$7,\"\")","v":"Normale verwerking, Gegevens van minderjarigen, Gegevens waaruit religieuze of levenbeschouwelijke overtuigingen blijken, Gezondheidsgegevens"},{"$f":"Lijsten!B10&\", \"&Lijsten!B11&\", \"&Lijsten!B12","v":"Lid, Leiding, Ouder/voogd"},{"$f":"Lijsten!$B$23","v":"W1404G - Zeescouts De Schorre"},{"$f":"IF(F11=Lijsten!$B$22,Lijsten!$B$27,Lijsten!$B$26)","v":"Geen verwerker"},{"$f":"Lijsten!$B$30","v":"Geen ontvanger"},{"$f":"Vragenlijst!I48","v":"Naam, E-mailadres, Bijzondere aandacht bij hygiëne (zelfstandigheid, allergie, bedwateren,…), Dieet, Levensbeschouwelijke overtuigingen"},{"$f":"J9","v":"Betrokkene zelf, Ouder/voogd van betrokkene"},{"$f":"Vragenlijst!I54","v":"Google Drive, Google Docs, Google Spreadsheets, Google Forms"},{"$f":"L8","v":"10 jaar"},{"$f":"Lijsten!F21","v":"Organisatie wekelijkse activiteiten"},{"$f":"N8","v":"Uitvoering van een contract/overeenkomst"},8]
["Activiteiten","Wekelijkse activiteiten","Inschrijvingen bewaren",{"$f":"D11","v":"Normale verwerking, Gegevens van minderjarigen, Gegevens waaruit religieuze of levenbeschouwelijke overtuigingen blijken, Gezondheidsgegevens"},{"$f":"E11","v":"Lid, Leiding, Ouder/voogd"},{"$f":"Lijsten!$B$23","v":"W1404G - Zeescouts De Schorre"},{"$f":"IF(F12=Lijsten!$B$22,Lijsten!$B$27,Lijsten!$B$26)","v":"Geen verwerker"},{"$f":"Lijsten!$B$30","v":"Geen ontvanger"},{"$f":"I11","v":"Naam, E-mailadres, Bijzondere aandacht bij hygiëne (zelfstandigheid, allergie, bedwateren,…), Dieet, Levensbeschouwelijke overtuigingen"},"Betrokkene zelf, Ouder/voogd van betrokkene",{"$f":"Vragenlijst!I60","v":"Google Drive, Google Docs, Google Spreadsheets, Google Forms"},"10 jaar",{"$f":"M11","v":"Organisatie wekelijkse activiteiten"},"Uitvoering van een contract/overeenkomst",9]
["Activiteiten","Wekelijkse activiteiten","Papieren versie gebruiken",{"$f":"D12","v":"Normale verwerking, Gegevens van minderjarigen, Gegevens waaruit religieuze of levenbeschouwelijke overtuigingen blijken, Gezondheidsgegevens"},{"$f":"E12","v":"Lid, Leiding, Ouder/voogd"},{"$f":"Lijsten!$B$23","v":"W1404G - Zeescouts De Schorre"},{"$f":"IF(F13=Lijsten!$B$22,Lijsten!$B$27,Lijsten!$B$26)","v":"Geen verwerker"},{"$f":"Lijsten!$B$30","v":"Geen ontvanger"},{"$f":"I12","v":"Naam, E-mailadres, Bijzondere aandacht bij hygiëne (zelfstandigheid, allergie, bedwateren,…), Dieet, Levensbeschouwelijke overtuigingen"},"Betrokkene zelf, Ouder/voogd van betrokkene",{"$f":"K12&IF(Vragenlijst!E58=TRUE,\"\",\", \"&Lijsten!F7)","v":"Google Drive, Google Docs, Google Spreadsheets, Google Forms, Papier"},"10 jaar","Organisatie wekelijkse activiteiten","Uitvoering van een contract/overeenkomst",10]
["Activiteiten","Wekelijkse activiteiten","Betalingen opvolgen",{"$f":"Lijsten!B4&\", \"&Lijsten!B5","v":"Normale verwerking, Gegevens van minderjarigen"},{"$f":"E13","v":"Lid, Leiding, Ouder/voogd"},{"$f":"Lijsten!$B$23","v":"W1404G - Zeescouts De Schorre"},{"$f":"IF(F14=Lijsten!$B$22,Lijsten!$B$27,Lijsten!$B$26)","v":"Geen verwerker"},{"$f":"Lijsten!$B$30","v":"Geen ontvanger"},{"$f":"I13&\", \"&Lijsten!D5","v":"Naam, E-mailadres, Bijzondere aandacht bij hygiëne (zelfstandigheid, allergie, bedwateren,…), Dieet, Levensbeschouwelijke overtuigingen, Bankrekeningnummer"},"Betrokkene zelf, Ouder/voogd van betrokkene",{"$f":"K12","v":"Google Drive, Google Docs, Google Spreadsheets, Google Forms"},"10 jaar","Organisatie wekelijkse activiteiten","Uitvoering van een contract/overeenkomst",11]
["Activiteiten","Wekelijkse activiteiten","Verzekeringen",{"$f":"D14","v":"Normale verwerking, Gegevens van minderjarigen"},{"$f":"E14","v":"Lid, Leiding, Ouder/voogd"},{"$f":"Lijsten!$B$23","v":"W1404G - Zeescouts De Schorre"},{"$f":"IF(F15=Lijsten!$B$22,Lijsten!$B$27,Lijsten!$B$26)","v":"Geen verwerker"},{"$f":"Lijsten!$B$30","v":"Geen ontvanger"},{"$f":"Lijsten!D4&\", \"&Lijsten!D13&\", \"&Lijsten!D15&\", \"&Lijsten!D24&\", \"&Lijsten!D28&\", \"&Lijsten!D30&\", \"&Lijsten!D32&\", \"&Lijsten!D38","v":"Adres, Chassisnummer, E-mailadres, IP-adres, Lidnummer, Naam, Nummerplaat, Telefoonnummer"},"Betrokkene zelf, Ouder/voogd van betrokkene",{"$f":"K11","v":"Google Drive, Google Docs, Google Spreadsheets, Google Forms"},"10 jaar","Organisatie wekelijkse activiteiten","Uitvoering van een contract/overeenkomst",12]
["Activiteiten","Wekelijkse activiteiten","Carpoollijsten opstellen",{"$f":"D14","v":"Normale verwerking, Gegevens van minderjarigen"},{"$f":"E14","v":"Lid, Leiding, Ouder/voogd"},{"$f":"Lijsten!$B$23","v":"W1404G - Zeescouts De Schorre"},{"$f":"IF(F16=Lijsten!$B$22,Lijsten!$B$27,Lijsten!$B$26)","v":"Geen verwerker"},{"$f":"Lijsten!$B$30","v":"Geen ontvanger"},{"$f":"Vragenlijst!I68","v":""},{"$f":"J14","v":"Betrokkene zelf, Ouder/voogd van betrokkene"},{"$f":"Vragenlijst!I72","v":""},"10 jaar",{"$f":"M14","v":"Organisatie wekelijkse activiteiten"},{"$f":"Lijsten!F30","v":"Toestemming"},13]
["Activiteiten","Wekelijkse activiteiten","Carpoollijsten bewaren",{"$f":"D15","v":"Normale verwerking, Gegevens van minderjarigen"},{"$f":"E15","v":"Lid, Leiding, Ouder/voogd"},{"$f":"Lijsten!$B$23","v":"W1404G - Zeescouts De Schorre"},{"$f":"IF(F17=Lijsten!$B$22,Lijsten!$B$27,Lijsten!$B$26)","v":"Geen verwerker"},{"$f":"Lijsten!$B$30","v":"Geen ontvanger"},{"$f":"I16","v":""},{"$f":"J15","v":"Betrokkene zelf, Ouder/voogd van betrokkene"},{"$f":"Vragenlijst!I78","v":""},"10 jaar",{"$f":"M15","v":"Organisatie wekelijkse activiteiten"},{"$f":"N16","v":"Toestemming"},13]
["Activiteiten","Geldactiviteiten","Inschrijvingen opvragen",{"$f":"Lijsten!$B$4&\", \"&Lijsten!$B$5&IF(Vragenlijst!E90=TRUE,\", \"&Lijsten!$B$6&\", \"&Lijsten!$B$7,\"\")","v":"Normale verwerking, Gegevens van minderjarigen, Gegevens waaruit religieuze of levenbeschouwelijke overtuigingen blijken, Gezondheidsgegevens"},{"$f":"Lijsten!B10&\", \"&Lijsten!B11&\", \"&Lijsten!B12&\", \"&Lijsten!B13&\", \"&Lijsten!B14&\", \"&Lijsten!B15&\", \"&Lijsten!B16","v":"Lid, Leiding, Ouder/voogd, Familie van lid, Sympathisant, Oud-lid, Oud-leiding"},{"$f":"Lijsten!$B$23","v":"W1404G - Zeescouts De Schorre"},{"$f":"IF(F18=Lijsten!$B$22,Lijsten!$B$27,Lijsten!$B$26)","v":"Geen verwerker"},{"$f":"Lijsten!$B$30","v":"Geen ontvanger"},{"$f":"Vragenlijst!I86","v":"Naam, E-mailadres, Telefoonnummer, Adres, Bijzondere aandacht bij hygiëne (zelfstandigheid, allergie, bedwateren,…), Dieet, Levensbeschouwelijke overtuigingen"},{"$f":"J17","v":"Betrokkene zelf, Ouder/voogd van betrokkene"},{"$f":"Vragenlijst!I92","v":"Website - https://zeescoutsdeschorre.be/, Google Drive, Google Docs, Google Spreadsheets, Google Forms, Mailprogramma, Telefoon, Papier"},"10 jaar",{"$f":"Lijsten!F22","v":"Organisatie geldactiviteit"},{"$f":"N15","v":"Uitvoering van een contract/overeenkomst"},14]
["Activiteiten","Geldactiviteiten","Inschrijvingen bewaren",{"$f":"D18","v":"Normale verwerking, Gegevens van minderjarigen, Gegevens waaruit religieuze of levenbeschouwelijke overtuigingen blijken, Gezondheidsgegevens"},{"$f":"E18","v":"Lid, Leiding, Ouder/voogd, Familie van lid, Sympathisant, Oud-lid, Oud-leiding"},{"$f":"Lijsten!$B$23","v":"W1404G - Zeescouts De Schorre"},{"$f":"IF(F19=Lijsten!$B$22,Lijsten!$B$27,Lijsten!$B$26)","v":"Geen verwerker"},{"$f":"Lijsten!$B$30","v":"Geen ontvanger"},{"$f":"I18","v":"Naam, E-mailadres, Telefoonnummer, Adres, Bijzondere aandacht bij hygiëne (zelfstandigheid, allergie, bedwateren,…), Dieet, Levensbeschouwelijke overtuigingen"},{"$f":"J18","v":"Betrokkene zelf, Ouder/voogd van betrokkene"},{"$f":"Vragenlijst!I98","v":"MS Word, MS Excel, MS Access, Google Drive, Google Docs, Google Spreadsheets, Google Forms, Dropbox, Papier"},"10 jaar",{"$f":"M18","v":"Organisatie geldactiviteit"},{"$f":"N18","v":"Uitvoering van een contract/overeenkomst"},15]
["Activiteiten","Geldactiviteiten","Papieren versie inschrijvingen gebruiken",{"$f":"D19","v":"Normale verwerking, Gegevens van minderjarigen, Gegevens waaruit religieuze of levenbeschouwelijke overtuigingen blijken, Gezondheidsgegevens"},{"$f":"E19","v":"Lid, Leiding, Ouder/voogd, Familie van lid, Sympathisant, Oud-lid, Oud-leiding"},{"$f":"Lijsten!$B$23","v":"W1404G - Zeescouts De Schorre"},{"$f":"IF(F20=Lijsten!$B$22,Lijsten!$B$27,Lijsten!$B$26)","v":"Geen verwerker"},{"$f":"Lijsten!$B$30","v":"Geen ontvanger"},{"$f":"I19","v":"Naam, E-mailadres, Telefoonnummer, Adres, Bijzondere aandacht bij hygiëne (zelfstandigheid, allergie, bedwateren,…), Dieet, Levensbeschouwelijke overtuigingen"},{"$f":"J19","v":"Betrokkene zelf, Ouder/voogd van betrokkene"},{"$f":"K19&IF(Vragenlijst!E101=TRUE,\"\",\", \"&Lijsten!F7)","v":"MS Word, MS Excel, MS Access, Google Drive, Google Docs, Google Spreadsheets, Google Forms, Dropbox, Papier"},"10 jaar",{"$f":"M19","v":"Organisatie geldactiviteit"},{"$f":"N19","v":"Uitvoering van een contract/overeenkomst"},16]
["Activiteiten","Kampen/Weekends","Inschrijvingen opvragen",{"$f":"Lijsten!$B$4&\", \"&Lijsten!$B$5&IF(Vragenlijst!E110=TRUE,\", \"&Lijsten!$B$6&\", \"&Lijsten!$B$7,\"\")","v":"Normale verwerking, Gegevens van minderjarigen, Gegevens waaruit religieuze of levenbeschouwelijke overtuigingen blijken, Gezondheidsgegevens"},{"$f":"E11","v":"Lid, Leiding, Ouder/voogd"},{"$f":"Lijsten!$B$23","v":"W1404G - Zeescouts De Schorre"},{"$f":"IF(F21=Lijsten!$B$22,Lijsten!$B$27,Lijsten!$B$26)","v":"Geen verwerker"},{"$f":"Lijsten!$B$30","v":"Geen ontvanger"},{"$f":"Vragenlijst!I106","v":"Naam, E-mailadres, Telefoonnummer, Bijzondere aandacht bij hygiëne (zelfstandigheid, allergie, bedwateren,…), Dieet, Levensbeschouwelijke overtuigingen"},{"$f":"J20","v":"Betrokkene zelf, Ouder/voogd van betrokkene"},{"$f":"Vragenlijst!I116","v":"Mailprogramma, Papier"},"10 jaar",{"$f":"Lijsten!F23","v":"Organisatie kamp/weekend"},{"$f":"N20","v":"Uitvoering van een contract/overeenkomst"},17]
["Activiteiten","Kampen/Weekends","Extra informatie buitenlands kamp opvragen",{"$f":"Lijsten!B4&\", \"&Lijsten!B5","v":"Normale verwerking, Gegevens van minderjarigen"},{"$f":"E21","v":"Lid, Leiding, Ouder/voogd"},{"$f":"Lijsten!$B$23","v":"W1404G - Zeescouts De Schorre"},{"$f":"IF(F22=Lijsten!$B$22,Lijsten!$B$27,Lijsten!$B$26)","v":"Geen verwerker"},{"$f":"Lijsten!$B$30","v":"Geen ontvanger"},{"$f":"Vragenlijst!I112","v":"Rijksregisternummer, Identiteitskaartnummer"},{"$f":"J21","v":"Betrokkene zelf, Ouder/voogd van betrokkene"},{"$f":"K21","v":"Mailprogramma, Papier"},"10 jaar",{"$f":"M21","v":"Organisatie kamp/weekend"},"Uitvoering van een contract/overeenkomst",18]
["Activiteiten","Kampen/Weekends","Inschrijvingen bewaren",{"$f":"D21","v":"Normale verwerking, Gegevens van minderjarigen, Gegevens waaruit religieuze of levenbeschouwelijke overtuigingen blijken, Gezondheidsgegevens"},"Lid, Leiding, Ouder/voogd",{"$f":"Lijsten!$B$23","v":"W1404G - Zeescouts De Schorre"},{"$f":"IF(F23=Lijsten!$B$22,Lijsten!$B$27,Lijsten!$B$26)","v":"Geen verwerker"},{"$f":"Lijsten!$B$30","v":"Geen ontvanger"},{"$f":"I21&IF(LEN(Vragenlijst!I112)>0,\", \"&Vragenlijst!I112,\"\")","v":"Naam, E-mailadres, Telefoonnummer, Bijzondere aandacht bij hygiëne (zelfstandigheid, allergie, bedwateren,…), Dieet, Levensbeschouwelijke overtuigingen, Rijksregisternummer, Identiteitskaartnummer"},{"$f":"J22","v":"Betrokkene zelf, Ouder/voogd van betrokkene"},{"$f":"Vragenlijst!I122","v":"Papier"},"10 jaar","Organisatie kamp/weekend","Uitvoering van een contract/overeenkomst",19]
["Activiteiten","Kampen/Weekends","Papieren versie inschrijvingen gebruiken",{"$f":"D23","v":"Normale verwerking, Gegevens van minderjarigen, Gegevens waaruit religieuze of levenbeschouwelijke overtuigingen blijken, Gezondheidsgegevens"},"Lid, Leiding, Ouder/voogd",{"$f":"Lijsten!$B$23","v":"W1404G - Zeescouts De Schorre"},{"$f":"IF(F24=Lijsten!$B$22,Lijsten!$B$27,Lijsten!$B$26)","v":"Geen verwerker"},{"$f":"Lijsten!$B$30","v":"Geen ontvanger"},{"$f":"I23","v":"Naam, E-mailadres, Telefoonnummer, Bijzondere aandacht bij hygiëne (zelfstandigheid, allergie, bedwateren,…), Dieet, Levensbeschouwelijke overtuigingen, Rijksregisternummer, Identiteitskaartnummer"},"Betrokkene zelf, Ouder/voogd van betrokkene",{"$f":"K22","v":"Mailprogramma, Papier"},"10 jaar","Organisatie kamp/weekend","Uitvoering van een contract/overeenkomst",20]
["Activiteiten","Kampen/Weekends","Betalingen opvolgen",{"$f":"D14","v":"Normale verwerking, Gegevens van minderjarigen"},"Lid, Leiding, Ouder/voogd",{"$f":"Lijsten!$B$23","v":"W1404G - Zeescouts De Schorre"},{"$f":"IF(F25=Lijsten!$B$22,Lijsten!$B$27,Lijsten!$B$26)","v":"Geen verwerker"},{"$f":"Lijsten!$B$30","v":"Geen ontvanger"},{"$f":"I24&\", \"&Lijsten!D5","v":"Naam, E-mailadres, Telefoonnummer, Bijzondere aandacht bij hygiëne (zelfstandigheid, allergie, bedwateren,…), Dieet, Levensbeschouwelijke overtuigingen, Rijksregisternummer, Identiteitskaartnummer, Bankrekeningnummer"},"Betrokkene zelf, Ouder/voogd van betrokkene",{"$f":"K23","v":"Papier"},"10 jaar","Organisatie kamp/weekend","Uitvoering van een contract/overeenkomst",21]
["Activiteiten","Kampen/Weekends","Verzekeringen",{"$f":"D15","v":"Normale verwerking, Gegevens van minderjarigen"},"Lid, Leiding, Ouder/voogd",{"$f":"Lijsten!$B$22","v":"Scouts en Gidsen Vlaanderen vzw"},{"$f":"IF(F26=Lijsten!$B$22,Lijsten!$B$27,Lijsten!$B$26)","v":"W1404G - Zeescouts De Schorre"},{"$f":"Lijsten!$B$30","v":"Geen ontvanger"},{"$f":"I15","v":"Adres, Chassisnummer, E-mailadres, IP-adres, Lidnummer, Naam, Nummerplaat, Telefoonnummer"},"Betrokkene zelf, Ouder/voogd van betrokkene",{"$f":"K21","v":"Mailprogramma, Papier"},"10 jaar","Organisatie kamp/weekend","Uitvoering van een contract/overeenkomst",22]
["Activiteiten","Kampen/Weekends","Kampboekjes drukken",{"$f":"Lijsten!B4&\", \"&Lijsten!B5","v":"Normale verwerking, Gegevens van minderjarigen"},"Lid, Leiding, Ouder/voogd",{"$f":"Lijsten!$B$23","v":"W1404G - Zeescouts De Schorre"},{"$f":"IF(F27=Lijsten!$B$22,Lijsten!$B$27,Lijsten!$B$26)","v":"Geen verwerker"},{"$f":"Lijsten!$B$30","v":"Geen ontvanger"},{"$f":"Lijsten!D15&\", \"&Lijsten!D30&\", \"&Lijsten!D38","v":"E-mailadres, Naam, Telefoonnummer"},"Betrokkene zelf, Ouder/voogd van betrokkene",{"$f":"Lijsten!F7","v":"Papier"},"10 jaar","Organisatie kamp/weekend","Uitvoering van een contract/overeenkomst",23]
["Activiteiten","Kampen/Weekends","Kampboekjes versturen/uitdelen",{"$f":"D27","v":"Normale verwerking, Gegevens van minderjarigen"},"Lid, Leiding, Ouder/voogd",{"$f":"Lijsten!$B$23","v":"W1404G - Zeescouts De Schorre"},{"$f":"IF(F28=Lijsten!$B$22,Lijsten!$B$27,Lijsten!$B$26)","v":"Geen verwerker"},{"$f":"Lijsten!$B$30","v":"Geen ontvanger"},{"$f":"Lijsten!D4&\", \"&Verwerkingsregister!I27","v":"Adres, E-mailadres, Naam, Telefoonnummer"},"Betrokkene zelf, Ouder/voogd van betrokkene",{"$f":"K27","v":"Papier"},"10 jaar","Organisatie kamp/weekend","Uitvoering van een contract/overeenkomst",24]
["Activiteiten","Kampen/Weekends","Ledenlijsten doorsturen naar gemeente",{"$f":"Lijsten!B4&\", \"&Lijsten!B5","v":"Normale verwerking, Gegevens van minderjarigen"},"Lid, Leiding, Ouder/voogd",{"$f":"Lijsten!$B$23","v":"W1404G - Zeescouts De Schorre"},{"$f":"IF(F29=Lijsten!$B$22,Lijsten!$B$27,Lijsten!$B$26)","v":"Geen verwerker"},{"$f":"Lijsten!$B$33","v":"Gemeente Oostende (B-8400)"},{"$f":"Lijsten!D4&\", \"&Lijsten!D18&\", \"&Lijsten!D30&\", \"&Lijsten!D38","v":"Adres, Geboortedatum, Naam, Telefoonnummer"},"Betrokkene zelf, Ouder/voogd van betrokkene",{"$f":"Lijsten!F6&\", \"&Lijsten!F7","v":"Mailprogramma, Papier"},"10 jaar","Organisatie kamp/weekend",{"$f":"Lijsten!F29","v":"Wettelijke verplichting"},25]
["Activiteiten","Kampen/Weekends","Carpoollijsten opstellen",{"$f":"D16","v":"Normale verwerking, Gegevens van minderjarigen"},{"$f":"E28","v":"Lid, Leiding, Ouder/voogd"},{"$f":"Lijsten!$B$23","v":"W1404G - Zeescouts De Schorre"},{"$f":"IF(F30=Lijsten!$B$22,Lijsten!$B$27,Lijsten!$B$26)","v":"Geen verwerker"},{"$f":"Lijsten!$B$30","v":"Geen ontvanger"},{"$f":"Vragenlijst!I129","v":0},{"$f":"J28","v":"Betrokkene zelf, Ouder/voogd van betrokkene"},{"$f":"Vragenlijst!I134","v":"Website - https://zeescoutsdeschorre.be/, Google Drive, Google Docs, Google Spreadsheets, Google Forms, Mailprogramma, Telefoon, Papier"},"10 jaar",{"$f":"M28","v":"Organisatie kamp/weekend"},{"$f":"Lijsten!F30","v":"Toestemming"},26]
["Activiteiten","Kampen/Weekends","Carpoollijsten bewaren",{"$f":"D17","v":"Normale verwerking, Gegevens van minderjarigen"},{"$f":"E29","v":"Lid, Leiding, Ouder/voogd"},{"$f":"Lijsten!$B$23","v":"W1404G - Zeescouts De Schorre"},{"$f":"IF(F31=Lijsten!$B$22,Lijsten!$B$27,Lijsten!$B$26)","v":"Geen verwerker"},{"$f":"Lijsten!$B$30","v":"Geen ontvanger"},{"$f":"Vragenlijst!I130","v":"Naam, E-mailadres, Telefoonnummer"},{"$f":"J29","v":"Betrokkene zelf, Ouder/voogd van betrokkene"},{"$f":"Vragenlijst!I140","v":"MS Word, MS Excel, MS Access, Google Drive, Google Docs, Google Spreadsheets, Google Forms, Dropbox, Papier"},"10 jaar",{"$f":"M29","v":"Organisatie kamp/weekend"},{"$f":"N30","v":"Toestemming"},26]
["Publicaties","Foto's en video's","Nemen",{"$f":"Lijsten!B4&\", \"&Lijsten!B5","v":"Normale verwerking, Gegevens van minderjarigen"},{"$f":"Lijsten!B10&\", \"&Lijsten!B11&\", \"&Lijsten!B12&\", \"&Lijsten!B13&\", \"&Lijsten!B14&\", \"&Lijsten!B15&\", \"&Lijsten!B16","v":"Lid, Leiding, Ouder/voogd, Familie van lid, Sympathisant, Oud-lid, Oud-leiding"},{"$f":"Lijsten!$B$23","v":"W1404G - Zeescouts De Schorre"},{"$f":"IF(F32=Lijsten!$B$22,Lijsten!$B$27,Lijsten!$B$26)","v":"Geen verwerker"},{"$f":"Lijsten!$B$30","v":"Geen ontvanger"},{"$f":"Lijsten!D12&\", \"&Lijsten!D17","v":"Cameraopname, Foto"},"Betrokkene zelf, Ouder/voogd van betrokkene",{"$f":"Lijsten!F9&\", \"&Vragenlijst!I148","v":"Fototoestel, Website - https://zeescoutsdeschorre.be/, Facebook, Instagram, Youtube "},"10 jaar",{"$f":"Lijsten!F24","v":"Sfeerbeheer"},{"$f":"N31","v":"Toestemming"},27]
["Publicaties","Foto's en video's","Publiceren",{"$f":"D32","v":"Normale verwerking, Gegevens van minderjarigen"},{"$f":"E32","v":"Lid, Leiding, Ouder/voogd, Familie van lid, Sympathisant, Oud-lid, Oud-leiding"},{"$f":"Lijsten!$B$23","v":"W1404G - Zeescouts De Schorre"},{"$f":"IF(F33=Lijsten!$B$22,Lijsten!$B$27,Lijsten!$B$26)","v":"Geen verwerker"},{"$f":"Lijsten!$B$30","v":"Geen ontvanger"},{"$f":"I32","v":"Cameraopname, Foto"},"Betrokkene zelf, Ouder/voogd van betrokkene",{"$f":"K32","v":"Fototoestel, Website - https://zeescoutsdeschorre.be/, Facebook, Instagram, Youtube "},"10 jaar",{"$f":"M32","v":"Sfeerbeheer"},{"$f":"N32","v":"Toestemming"},28]
["Publicaties","Programmaboekje","Programmaboekje drukken",{"$f":"Lijsten!B4&\", \"&Lijsten!B5","v":"Normale verwerking, Gegevens van minderjarigen"},{"$f":"Lijsten!B10&\", \"&Lijsten!B11","v":"Lid, Leiding"},{"$f":"Lijsten!$B$23","v":"W1404G - Zeescouts De Schorre"},{"$f":"IF(F34=Lijsten!$B$22,Lijsten!$B$27,Lijsten!$B$26)","v":"Geen verwerker"},{"$f":"Lijsten!$B$32","v":"Drukkerij"},{"$f":"Vragenlijst!I154","v":"Naam, E-mailadres, Telefoonnummer"},{"$f":"J33","v":"Betrokkene zelf, Ouder/voogd van betrokkene"},{"$f":"Lijsten!F7","v":"Papier"},"10 jaar",{"$f":"Lijsten!F20","v":"Communicatie ouders"},{"$f":"N28","v":"Uitvoering van een contract/overeenkomst"},29]
["Publicaties","Programmaboekje","Programmaboekje uitdelen/versturen/publiceren",{"$f":"D34","v":"Normale verwerking, Gegevens van minderjarigen"},{"$f":"Lijsten!B10&\", \"&Lijsten!B11&\", \"&Lijsten!B12","v":"Lid, Leiding, Ouder/voogd"},{"$f":"Lijsten!$B$23","v":"W1404G - Zeescouts De Schorre"},{"$f":"IF(F35=Lijsten!$B$22,Lijsten!$B$27,Lijsten!$B$26)","v":"Geen verwerker"},{"$f":"Lijsten!$B$30","v":"Geen ontvanger"},{"$f":"I34","v":"Naam, E-mailadres, Telefoonnummer"},"Betrokkene zelf, Ouder/voogd van betrokkene",{"$f":"Lijsten!F6&\", \"&Lijsten!F7","v":"Mailprogramma, Papier"},"10 jaar",{"$f":"M34","v":"Communicatie ouders"},{"$f":"N34","v":"Uitvoering van een contract/overeenkomst"},30]
["Verhuur","Materiaal/lokalen","Gegevens opvragen",{"$f":"Lijsten!B4","v":"Normale verwerking"},{"$f":"Lijsten!B18&\", \"&Lijsten!B19","v":"Verhuurder, Huurder"},{"$f":"Lijsten!$B$23","v":"W1404G - Zeescouts De Schorre"},{"$f":"IF(F36=Lijsten!$B$22,Lijsten!$B$27,Lijsten!$B$26)","v":"Geen verwerker"},{"$f":"Lijsten!$B$30","v":"Geen ontvanger"},{"$f":"Vragenlijst!I164","v":"Naam, E-mailadres, Telefoonnummer, Geboortedatum/Leeftijd, Adres, Handtekening"},"Betrokkene zelf, Ouder/voogd van betrokkene",{"$f":"Vragenlijst!I171","v":"Website - https://zeescoutsdeschorre.be/, Google Drive, Google Docs, Google Spreadsheets, Google Forms, Mailprogramma, Telefoon, Papier"},"10 jaar",{"$f":"Lijsten!F25","v":"Verhuur materiaal/lokalen"},{"$f":"N35","v":"Uitvoering van een contract/overeenkomst"},31]
["Verhuur","Materiaal/lokalen","Gegevens bewaren",{"$f":"D36","v":"Normale verwerking"},{"$f":"E36","v":"Verhuurder, Huurder"},{"$f":"Lijsten!$B$23","v":"W1404G - Zeescouts De Schorre"},{"$f":"IF(F37=Lijsten!$B$22,Lijsten!$B$27,Lijsten!$B$26)","v":"Geen verwerker"},{"$f":"Lijsten!$B$30","v":"Geen ontvanger"},{"$f":"I36","v":"Naam, E-mailadres, Telefoonnummer, Geboortedatum/Leeftijd, Adres, Handtekening"},"Betrokkene zelf, Ouder/voogd van betrokkene",{"$f":"Vragenlijst!I177","v":"MS Word, MS Excel, MS Access, Google Drive, Google Docs, Google Spreadsheets, Google Forms, Dropbox, Papier"},"10 jaar",{"$f":"M36","v":"Verhuur materiaal/lokalen"},{"$f":"N36","v":"Uitvoering van een contract/overeenkomst"},32]

{"sheet":"Lijsten","index":4,"n_rows":40,"n_cols":6,"rows_kept":40,"cut":false,"hidden":false,"merged":[[0,1,0,5]]}
[null,"Keuzelijsten verwerkingsregister"]
[]
[null,"Categorieën verwerkingen",null,"Persoonsgegevens",null,"Gebruikte technologie"]
[null,"Normale verwerking",null,"Adres",null,"Groepsadministratie"]
[null,"Gegevens van minderjarigen",null,"Bankrekeningnummer",null,{"$f":"IF('Algemene informatie'!C12=1,IF(LEN('Algemene informatie'!B13)>0,\"Website - \"&'Algemene informatie'!B13,\"Geen website URL opgegeven\"),\"Website\")","v":"Website - https://zeescoutsdeschorre.be/"}]
[null,"Gegevens waaruit religieuze of levenbeschouwelijke overtuigingen blijken",null,"Bijzondere aandacht bij beperkingen of andere zorgen",null,"Mailprogramma"]
[null,"Gezondheidsgegevens",null,"Bijzondere aandacht bij hygiëne (zelfstandigheid, allergie, bedwateren,…)",null,"Papier"]
[null,null,null,"Bijzondere aandacht bij sociale omgang (pesten, heimwee, angsten, slaapwandelen,…)",null,"Telefoon"]
[null,"Betrokkenen",null,"Bijzondere aandacht bij sporten (zwemmen, fietsen, hoogte, rust,…)",null,"Fototoestel"]
[null,"Lid",null,"Bloedgroep",null,"MS Word, MS Excel, MS Access"]
[null,"Leiding",null,"Burgerlijke staat",null,"Google Drive, Google Docs, Google Spreadsheets, Google Forms"]
[null,"Ouder/voogd",null,"Cameraopname",null,"Dropbox"]
[null,"Familie van lid",null,"Chassisnummer",null,"Facebook"]
[null,"Sympathisant",null,"Dieet",null,"Instagram"]
[null,"Oud-lid",null,"E-mailadres",null,"Whatsapp"]
[null,"Oud-leiding",null,"Financiële hulp",null,"Snapchat"]
[null,"Lid vzw",null,"Foto"]
[null,"Verhuurder",null,"Geboortedatum",null,"Verwerkingsdoel"]
[null,"Huurder",null,"Geboorteplaats",null,"Ledenbeheer"]
[null,null,null,"Geslacht",null,"Communicatie ouders"]
[null,"Verantwoordelijken",null,"Handtekening",null,"Organisatie wekelijkse activiteiten"]
[null,{"$f":"'Algemene informatie'!A1","v":"Scouts en Gidsen Vlaanderen vzw"},null,"Identiteitskaartnummer",null,"Organisatie geldactiviteit"]
[null,{"$f":"IF(AND(LEN('Algemene informatie'!B8)>0,LEN('Algemene informatie'!B9)>0),'Algemene informatie'!B8&\" - \"&'Algemene informatie'!B9,\"Groepsinformatie niet opgegeven\")","v":"W1404G - Zeescouts De Schorre"},null,"Inenting tegen klem (tetanus)",null,"Organisatie kamp/weekend"]
[null,null,null,"IP-adres",null,"Sfeerbeheer"]
[null,"Verwerkers",null,"Leeftijd",null,"Verhuur materiaal/lokalen"]
[null,"Geen verwerker",null,"Levensbeschouwelijke overtuigingen"]
[null,{"$f":"B23","v":"W1404G - Zeescouts De Schorre"},null,"Lidmaatschap (van een organisatie/vereniging)",null,"Verwerkingsgrond"]
[null,null,null,"Lidnummer",null,"Uitvoering van een contract/overeenkomst"]
[null,"Ontvangers",null,"Medisch dossier",null,"Wettelijke verplichting"]
[null,"Geen ontvanger",null,"Naam",null,"Toestemming"]
[null,{"$f":"B37","v":"Ouder/voogd van betrokkene"},null,"Nationaliteit",null,"Gerechtvaardigd belang"]
[null,"Drukkerij",null,"Nummerplaat",null,"Vitaal belang"]
[null,{"$f":"\"Gemeente \"&'Algemene informatie'!$B$10&\" (B-\"&'Algemene informatie'!B11&\")\"","v":"Gemeente Oostende (B-8400)"},null,"Overzicht aanwezigheden",null,"Algemeen belang"]
[null,null,null,"Overzicht specifieke medicatie"]
[null,"Gegevensbron",null,"Overzicht ziekten"]
[null,"Betrokkene zelf",null,"Paspoortnummer"]
[null,{"$f":"B12&\" van betrokkene\"","v":"Ouder/voogd van betrokkene"},null,"Rijksregisternummer"]
[null,null,null,"Telefoonnummer"]
[null,null,null,"Titel"]
[null,null,null,"Totem"]

{"sheet":"Antwoorden keuzelijsten","index":5,"n_rows":2,"n_cols":1,"rows_kept":2,"cut":false,"hidden":true,"merged":[]}
["Ja"]
["Nee"]